{"text_format":"3","workbook":"xlsx","n_sheets":4,"sheets":["CIELE","STRAVOVANIE","CVIČENIE","Výpočty grafov"],"not_rendered":{"charts":2,"defined_names":19},"read":"whole","date_system":"1900"}

{"sheet":"CIELE","index":0,"n_rows":14,"n_cols":11,"rows_kept":14}
[null,{"$f":"TODAY()","v":"2022-12-14"},"CIELE",{"$nulls":6},"Cvičenie","Stravovanie"]
[null,"DÁTUM ZAČATIA","DENNÍK STRAVOVANIA A CVIČENIA"]
[null,{"$f":"DátumZačatia+121","v":"2023-04-14"},"ANALÝZA STRAVOVANIA"]
[null,"DÁTUM UKONČENIA"]
[null,{"v":220,"d":"220.00"}]
[null,"HMOTNOSŤ NA ZAČIATKU"]
[null,{"v":180,"d":"180.00"},"ANALÝZA CVIČENIA"]
[null,"HMOTNOSŤ NA KONCI"]
[null,{"$f":"HmotnosťNaZačiatku-HmotnosťNaKonci","v":40}]
[null,"PLÁNOVANÝ ÚBYTOK HMOTNOSTI"]
[null,{"$f":"DátumUkončenia-DátumZačatia","v":121}]
[null,"DNI NA CHUDNUTIE"]
[null,{"$f":"HmotnostnýCieľ/B11","v":{"v":0.3305785123966942,"d":"0.33"}}]
[null,"ÚBYTOK HMOTNOSTI ZA DEŇ"]

{"sheet":"STRAVOVANIE","index":1,"n_rows":19,"n_cols":9,"rows_kept":19}
[null,"STRAVOVANIE",{"$nulls":4},"Ciele","Cvičenie"]
[null,{"$f":"Podnadpis","v":"DENNÍK STRAVOVANIA A CVIČENIA"}]
[null,"DÁTUM","ČAS","POPIS","KALÓRIE","SACHARIDY","BIELKOVINY","TUKY","POZNÁMKY"]
[null,{"$f":"DátumZačatia","v":"2022-12-14"},"07:00:00","Káva",1,0,0,0,"Ranná káva"]
[null,{"$f":"DátumZačatia","v":"2022-12-14"},"08:00:00","Žemľa",10,10,2,10,"Ľahké raňajky"]
[null,{"$f":"DátumZačatia","v":"2022-12-14"},"12:00:00","Obed",283,46,18,{"v":3.5,"d":"4"},"Morčací sendvič"]
[null,{"$f":"DátumZačatia","v":"2022-12-14"},"19:00:00","Večera",500,42,35,25,"Zemiakové casserole"]
[null,{"$f":"DátumZačatia+1","v":"2022-12-15"},"07:00:00","Káva",1,0,0,0,"Ranná káva"]
[null,{"$f":"DátumZačatia+1","v":"2022-12-15"},"08:00:00","Hrianka",10,10,2,10,"Ľahké raňajky"]
[null,{"$f":"DátumZačatia+1","v":"2022-12-15"},"12:00:00","Obed",189,26,3,8,"Sendvič"]
[null,{"$f":"DátumZačatia+1","v":"2022-12-15"},"19:00:00","Večera",477,62,{"v":13.5,"d":"14"},21,"Večera"]
[null,{"$f":"DátumZačatia+2","v":"2022-12-16"},"07:00:00","Káva",1,0,0,0,"Ranná káva"]
[null,{"$f":"DátumZačatia+2","v":"2022-12-16"},"08:00:00","Žemľa",245,48,10,{"v":1.5,"d":"2"},"Ľahké raňajky"]
[null,{"$f":"DátumZačatia+2","v":"2022-12-16"},"12:00:00","Obed",247,11,43,5,"Šalát"]
[null,{"$f":"DátumZačatia+2","v":"2022-12-16"},"19:00:00","Večera",456,64,32,22,"Večera"]
[null,{"$f":"DátumZačatia+3","v":"2022-12-17"},"07:00:00","Hrianka",10,10,2,10,"Ľahké raňajky"]
[null,{"$f":"DátumZačatia+3","v":"2022-12-17"},"10:00:00","Káva",135,{"v":12.36,"d":"12"},{"v":8.81,"d":"9"},{"v":5.51,"d":"6"},"Latte"]
[null,{"$f":"DátumZačatia+3","v":"2022-12-17"},"12:15:00","Obed",184,7,{"v":5.43,"d":"5"},15,"Šalát"]
[null,{"$f":"DátumZačatia+5","v":"2022-12-19"},"19:00:00","Večera",477,62,{"v":13.5,"d":"14"},21,"Večera"]

{"sheet":"CVIČENIE","index":2,"n_rows":20,"n_cols":7,"rows_kept":20}
[null,"CVIČENIE",{"$nulls":3},"Stravovanie","Ciele"]
[null,{"$f":"Podnadpis","v":"DENNÍK STRAVOVANIA A CVIČENIA"}]
[null,"DÁTUM","DĹŽKA TRVANIA (MINÚTY)","SPÁLENÉ KALÓRIE","POZNÁMKY"]
[null,{"$f":"DátumZačatia+4","v":"2022-12-18"},30,120,"Cvičenie na bežeckom páse"]
[null,{"$f":"B4+1","v":"2022-12-19"},60,180,"Nízkozáťažové aeróbne cvičenie"]
[null,{"$f":"B5+1","v":"2022-12-20"},60,350,"Extrémne cvičenie"]
[null,"2022-12-21",30,150,"Cvičenie na bežeckom páse"]
[null,"2022-12-22",25,125,"Beh"]
[null,"2022-12-23",20,285,"Cvičenie na bežeckom páse"]
[null,"2022-12-24",40,205,"Beh"]
[null,"2022-12-25",30,335,"Beh"]
[null,"2022-12-26",40,175,"Beh"]
[null,"2022-12-27",45,325,"Cvičenie na bežeckom páse"]
[null,"2022-12-28",40,270,"Beh"]
[null,"2022-12-29",20,295,"Cvičenie na bežeckom páse"]
[null,"2022-12-30",45,350,"Beh"]
[null,"2022-12-31",35,320,"Beh"]
[null,"2023-01-01",40,290,"Beh"]
[null,{"$f":"B18+1","v":"2023-01-02"},25,265,"Cvičenie na bežeckom páse"]
[null,"2023-01-03",20,195,"Beh"]

{"sheet":"Výpočty grafov","index":3,"n_rows":36,"n_cols":10,"rows_kept":36,"hidden":true,"merged":[[1,1,1,9],[19,1,19,9]]}
[]
[null,"ÚDAJE GRAFU ANALÝZY STRAVOVANIA"]
[]
[null,"Začiatočný riadok",{"$f":"ROW(Stravovanie[[#Headers],[DÁTUM]])+1","v":4},"DÁTUM","DEŇ","TUKY","BIELKOVINY","SACHARIDY","KALÓRIE","Počet"]
[null,"Posledný záznam o stravovaní",{"$f":"MATCH(9.99E+307,Stravovanie[DÁTUM])+ZačiatokRiadkaStravovania-1","v":19},{"$f":"IFERROR(IF(INDEX(Stravovanie[],KoniecPoslednéhoStravovania-ZačiatokRiadkaStravovania-J5,1)<>\"\",INDEX(Stravovanie[],KoniecPoslednéhoStravovania-ZačiatokRiadkaStravovania-J5,1),\"\"),\"\")","v":"2022-12-14"},{"$f":"UPPER(TEXT(D5,\"DDD\"))","v":"ST"},{"$f":"IFERROR((IF(INDEX(Stravovanie[],KoniecPoslednéhoStravovania-ZačiatokRiadkaStravovania-J5,1)<>\"\",INDEX(Stravovanie[],KoniecPoslednéhoStravovania-ZačiatokRiadkaStravovania-J5,7),NA())),NA())","v":3.5},{"$f":"IFERROR((IF(INDEX(Stravovanie[],KoniecPoslednéhoStravovania-ZačiatokRiadkaStravovania-J5,1)<>\"\",INDEX(Stravovanie[],KoniecPoslednéhoStravovania-ZačiatokRiadkaStravovania-J5,6),NA())),NA())","v":18},{"$f":"IFERROR((IF(INDEX(Stravovanie[],KoniecPoslednéhoStravovania-ZačiatokRiadkaStravovania-J5,1)<>\"\",INDEX(Stravovanie[],KoniecPoslednéhoStravovania-ZačiatokRiadkaStravovania-J5,5),NA())),NA())","v":46},{"$f":"IFERROR((IF(INDEX(Stravovanie[],KoniecPoslednéhoStravovania-ZačiatokRiadkaStravovania-J5,1)<>\"\",INDEX(Stravovanie[],KoniecPoslednéhoStravovania-ZačiatokRiadkaStravovania-J5,4),NA())),NA())","v":283},12]
[{"$nulls":3},{"$f":"IFERROR(IF(INDEX(Stravovanie[],KoniecPoslednéhoStravovania-ZačiatokRiadkaStravovania-J6,1)<>\"\",INDEX(Stravovanie[],KoniecPoslednéhoStravovania-ZačiatokRiadkaStravovania-J6,1),\"\"),\"\")","v":"2022-12-14"},"ST",{"$f":"IFERROR((IF(INDEX(Stravovanie[],KoniecPoslednéhoStravovania-ZačiatokRiadkaStravovania-J6,1)<>\"\",INDEX(Stravovanie[],KoniecPoslednéhoStravovania-ZačiatokRiadkaStravovania-J6,7),NA())),NA())","v":25},{"$f":"IFERROR((IF(INDEX(Stravovanie[],KoniecPoslednéhoStravovania-ZačiatokRiadkaStravovania-J6,1)<>\"\",INDEX(Stravovanie[],KoniecPoslednéhoStravovania-ZačiatokRiadkaStravovania-J6,6),NA())),NA())","v":35},{"$f":"IFERROR((IF(INDEX(Stravovanie[],KoniecPoslednéhoStravovania-ZačiatokRiadkaStravovania-J6,1)<>\"\",INDEX(Stravovanie[],KoniecPoslednéhoStravovania-ZačiatokRiadkaStravovania-J6,5),NA())),NA())","v":42},{"$f":"IFERROR((IF(INDEX(Stravovanie[],KoniecPoslednéhoStravovania-ZačiatokRiadkaStravovania-J6,1)<>\"\",INDEX(Stravovanie[],KoniecPoslednéhoStravovania-ZačiatokRiadkaStravovania-J6,4),NA())),NA())","v":500},11]
[{"$nulls":3},{"$f":"IFERROR(IF(INDEX(Stravovanie[],KoniecPoslednéhoStravovania-ZačiatokRiadkaStravovania-J7,1)<>\"\",INDEX(Stravovanie[],KoniecPoslednéhoStravovania-ZačiatokRiadkaStravovania-J7,1),\"\"),\"\")","v":"2022-12-15"},"ŠT",{"$f":"IFERROR((IF(INDEX(Stravovanie[],KoniecPoslednéhoStravovania-ZačiatokRiadkaStravovania-J7,1)<>\"\",INDEX(Stravovanie[],KoniecPoslednéhoStravovania-ZačiatokRiadkaStravovania-J7,7),NA())),NA())","v":0},{"$f":"IFERROR((IF(INDEX(Stravovanie[],KoniecPoslednéhoStravovania-ZačiatokRiadkaStravovania-J7,1)<>\"\",INDEX(Stravovanie[],KoniecPoslednéhoStravovania-ZačiatokRiadkaStravovania-J7,6),NA())),NA())","v":0},{"$f":"IFERROR((IF(INDEX(Stravovanie[],KoniecPoslednéhoStravovania-ZačiatokRiadkaStravovania-J7,1)<>\"\",INDEX(Stravovanie[],KoniecPoslednéhoStravovania-ZačiatokRiadkaStravovania-J7,5),NA())),NA())","v":0},{"$f":"IFERROR((IF(INDEX(Stravovanie[],KoniecPoslednéhoStravovania-ZačiatokRiadkaStravovania-J7,1)<>\"\",INDEX(Stravovanie[],KoniecPoslednéhoStravovania-ZačiatokRiadkaStravovania-J7,4),NA())),NA())","v":1},10]
[{"$nulls":3},{"$f":"IFERROR(IF(INDEX(Stravovanie[],KoniecPoslednéhoStravovania-ZačiatokRiadkaStravovania-J8,1)<>\"\",INDEX(Stravovanie[],KoniecPoslednéhoStravovania-ZačiatokRiadkaStravovania-J8,1),\"\"),\"\")","v":"2022-12-15"},"ŠT",{"$f":"IFERROR((IF(INDEX(Stravovanie[],KoniecPoslednéhoStravovania-ZačiatokRiadkaStravovania-J8,1)<>\"\",INDEX(Stravovanie[],KoniecPoslednéhoStravovania-ZačiatokRiadkaStravovania-J8,7),NA())),NA())","v":10},{"$f":"IFERROR((IF(INDEX(Stravovanie[],KoniecPoslednéhoStravovania-ZačiatokRiadkaStravovania-J8,1)<>\"\",INDEX(Stravovanie[],KoniecPoslednéhoStravovania-ZačiatokRiadkaStravovania-J8,6),NA())),NA())","v":2},{"$f":"IFERROR((IF(INDEX(Stravovanie[],KoniecPoslednéhoStravovania-ZačiatokRiadkaStravovania-J8,1)<>\"\",INDEX(Stravovanie[],KoniecPoslednéhoStravovania-ZačiatokRiadkaStravovania-J8,5),NA())),NA())","v":10},{"$f":"IFERROR((IF(INDEX(Stravovanie[],KoniecPoslednéhoStravovania-ZačiatokRiadkaStravovania-J8,1)<>\"\",INDEX(Stravovanie[],KoniecPoslednéhoStravovania-ZačiatokRiadkaStravovania-J8,4),NA())),NA())","v":10},9]
[{"$nulls":3},{"$f":"IFERROR(IF(INDEX(Stravovanie[],KoniecPoslednéhoStravovania-ZačiatokRiadkaStravovania-J9,1)<>\"\",INDEX(Stravovanie[],KoniecPoslednéhoStravovania-ZačiatokRiadkaStravovania-J9,1),\"\"),\"\")","v":"2022-12-15"},"ŠT",{"$f":"IFERROR((IF(INDEX(Stravovanie[],KoniecPoslednéhoStravovania-ZačiatokRiadkaStravovania-J9,1)<>\"\",INDEX(Stravovanie[],KoniecPoslednéhoStravovania-ZačiatokRiadkaStravovania-J9,7),NA())),NA())","v":8},{"$f":"IFERROR((IF(INDEX(Stravovanie[],KoniecPoslednéhoStravovania-ZačiatokRiadkaStravovania-J9,1)<>\"\",INDEX(Stravovanie[],KoniecPoslednéhoStravovania-ZačiatokRiadkaStravovania-J9,6),NA())),NA())","v":3},{"$f":"IFERROR((IF(INDEX(Stravovanie[],KoniecPoslednéhoStravovania-ZačiatokRiadkaStravovania-J9,1)<>\"\",INDEX(Stravovanie[],KoniecPoslednéhoStravovania-ZačiatokRiadkaStravovania-J9,5),NA())),NA())","v":26},{"$f":"IFERROR((IF(INDEX(Stravovanie[],KoniecPoslednéhoStravovania-ZačiatokRiadkaStravovania-J9,1)<>\"\",INDEX(Stravovanie[],KoniecPoslednéhoStravovania-ZačiatokRiadkaStravovania-J9,4),NA())),NA())","v":189},8]
[{"$nulls":3},{"$f":"IFERROR(IF(INDEX(Stravovanie[],KoniecPoslednéhoStravovania-ZačiatokRiadkaStravovania-J10,1)<>\"\",INDEX(Stravovanie[],KoniecPoslednéhoStravovania-ZačiatokRiadkaStravovania-J10,1),\"\"),\"\")","v":"2022-12-15"},"ŠT",{"$f":"IFERROR((IF(INDEX(Stravovanie[],KoniecPoslednéhoStravovania-ZačiatokRiadkaStravovania-J10,1)<>\"\",INDEX(Stravovanie[],KoniecPoslednéhoStravovania-ZačiatokRiadkaStravovania-J10,7),NA())),NA())","v":21},{"$f":"IFERROR((IF(INDEX(Stravovanie[],KoniecPoslednéhoStravovania-ZačiatokRiadkaStravovania-J10,1)<>\"\",INDEX(Stravovanie[],KoniecPoslednéhoStravovania-ZačiatokRiadkaStravovania-J10,6),NA())),NA())","v":13.5},{"$f":"IFERROR((IF(INDEX(Stravovanie[],KoniecPoslednéhoStravovania-ZačiatokRiadkaStravovania-J10,1)<>\"\",INDEX(Stravovanie[],KoniecPoslednéhoStravovania-ZačiatokRiadkaStravovania-J10,5),NA())),NA())","v":62},{"$f":"IFERROR((IF(INDEX(Stravovanie[],KoniecPoslednéhoStravovania-ZačiatokRiadkaStravovania-J10,1)<>\"\",INDEX(Stravovanie[],KoniecPoslednéhoStravovania-ZačiatokRiadkaStravovania-J10,4),NA())),NA())","v":477},7]
[{"$nulls":3},{"$f":"IFERROR(IF(INDEX(Stravovanie[],KoniecPoslednéhoStravovania-ZačiatokRiadkaStravovania-J11,1)<>\"\",INDEX(Stravovanie[],KoniecPoslednéhoStravovania-ZačiatokRiadkaStravovania-J11,1),\"\"),\"\")","v":"2022-12-16"},"PI",{"$f":"IFERROR((IF(INDEX(Stravovanie[],KoniecPoslednéhoStravovania-ZačiatokRiadkaStravovania-J11,1)<>\"\",INDEX(Stravovanie[],KoniecPoslednéhoStravovania-ZačiatokRiadkaStravovania-J11,7),NA())),NA())","v":0},{"$f":"IFERROR((IF(INDEX(Stravovanie[],KoniecPoslednéhoStravovania-ZačiatokRiadkaStravovania-J11,1)<>\"\",INDEX(Stravovanie[],KoniecPoslednéhoStravovania-ZačiatokRiadkaStravovania-J11,6),NA())),NA())","v":0},{"$f":"IFERROR((IF(INDEX(Stravovanie[],KoniecPoslednéhoStravovania-ZačiatokRiadkaStravovania-J11,1)<>\"\",INDEX(Stravovanie[],KoniecPoslednéhoStravovania-ZačiatokRiadkaStravovania-J11,5),NA())),NA())","v":0},{"$f":"IFERROR((IF(INDEX(Stravovanie[],KoniecPoslednéhoStravovania-ZačiatokRiadkaStravovania-J11,1)<>\"\",INDEX(Stravovanie[],KoniecPoslednéhoStravovania-ZačiatokRiadkaStravovania-J11,4),NA())),NA())","v":1},6]
[{"$nulls":3},{"$f":"IFERROR(IF(INDEX(Stravovanie[],KoniecPoslednéhoStravovania-ZačiatokRiadkaStravovania-J12,1)<>\"\",INDEX(Stravovanie[],KoniecPoslednéhoStravovania-ZačiatokRiadkaStravovania-J12,1),\"\"),\"\")","v":"2022-12-16"},"PI",{"$f":"IFERROR((IF(INDEX(Stravovanie[],KoniecPoslednéhoStravovania-ZačiatokRiadkaStravovania-J12,1)<>\"\",INDEX(Stravovanie[],KoniecPoslednéhoStravovania-ZačiatokRiadkaStravovania-J12,7),NA())),NA())","v":1.5},{"$f":"IFERROR((IF(INDEX(Stravovanie[],KoniecPoslednéhoStravovania-ZačiatokRiadkaStravovania-J12,1)<>\"\",INDEX(Stravovanie[],KoniecPoslednéhoStravovania-ZačiatokRiadkaStravovania-J12,6),NA())),NA())","v":10},{"$f":"IFERROR((IF(INDEX(Stravovanie[],KoniecPoslednéhoStravovania-ZačiatokRiadkaStravovania-J12,1)<>\"\",INDEX(Stravovanie[],KoniecPoslednéhoStravovania-ZačiatokRiadkaStravovania-J12,5),NA())),NA())","v":48},{"$f":"IFERROR((IF(INDEX(Stravovanie[],KoniecPoslednéhoStravovania-ZačiatokRiadkaStravovania-J12,1)<>\"\",INDEX(Stravovanie[],KoniecPoslednéhoStravovania-ZačiatokRiadkaStravovania-J12,4),NA())),NA())","v":245},5]
[{"$nulls":3},{"$f":"IFERROR(IF(INDEX(Stravovanie[],KoniecPoslednéhoStravovania-ZačiatokRiadkaStravovania-J13,1)<>\"\",INDEX(Stravovanie[],KoniecPoslednéhoStravovania-ZačiatokRiadkaStravovania-J13,1),\"\"),\"\")","v":"2022-12-16"},"PI",{"$f":"IFERROR((IF(INDEX(Stravovanie[],KoniecPoslednéhoStravovania-ZačiatokRiadkaStravovania-J13,1)<>\"\",INDEX(Stravovanie[],KoniecPoslednéhoStravovania-ZačiatokRiadkaStravovania-J13,7),NA())),NA())","v":5},{"$f":"IFERROR((IF(INDEX(Stravovanie[],KoniecPoslednéhoStravovania-ZačiatokRiadkaStravovania-J13,1)<>\"\",INDEX(Stravovanie[],KoniecPoslednéhoStravovania-ZačiatokRiadkaStravovania-J13,6),NA())),NA())","v":43},{"$f":"IFERROR((IF(INDEX(Stravovanie[],KoniecPoslednéhoStravovania-ZačiatokRiadkaStravovania-J13,1)<>\"\",INDEX(Stravovanie[],KoniecPoslednéhoStravovania-ZačiatokRiadkaStravovania-J13,5),NA())),NA())","v":11},{"$f":"IFERROR((IF(INDEX(Stravovanie[],KoniecPoslednéhoStravovania-ZačiatokRiadkaStravovania-J13,1)<>\"\",INDEX(Stravovanie[],KoniecPoslednéhoStravovania-ZačiatokRiadkaStravovania-J13,4),NA())),NA())","v":247},4]
[{"$nulls":3},{"$f":"IFERROR(IF(INDEX(Stravovanie[],KoniecPoslednéhoStravovania-ZačiatokRiadkaStravovania-J14,1)<>\"\",INDEX(Stravovanie[],KoniecPoslednéhoStravovania-ZačiatokRiadkaStravovania-J14,1),\"\"),\"\")","v":"2022-12-16"},"PI",{"$f":"IFERROR((IF(INDEX(Stravovanie[],KoniecPoslednéhoStravovania-ZačiatokRiadkaStravovania-J14,1)<>\"\",INDEX(Stravovanie[],KoniecPoslednéhoStravovania-ZačiatokRiadkaStravovania-J14,7),NA())),NA())","v":22},{"$f":"IFERROR((IF(INDEX(Stravovanie[],KoniecPoslednéhoStravovania-ZačiatokRiadkaStravovania-J14,1)<>\"\",INDEX(Stravovanie[],KoniecPoslednéhoStravovania-ZačiatokRiadkaStravovania-J14,6),NA())),NA())","v":32},{"$f":"IFERROR((IF(INDEX(Stravovanie[],KoniecPoslednéhoStravovania-ZačiatokRiadkaStravovania-J14,1)<>\"\",INDEX(Stravovanie[],KoniecPoslednéhoStravovania-ZačiatokRiadkaStravovania-J14,5),NA())),NA())","v":64},{"$f":"IFERROR((IF(INDEX(Stravovanie[],KoniecPoslednéhoStravovania-ZačiatokRiadkaStravovania-J14,1)<>\"\",INDEX(Stravovanie[],KoniecPoslednéhoStravovania-ZačiatokRiadkaStravovania-J14,4),NA())),NA())","v":456},3]
[{"$nulls":3},{"$f":"IFERROR(IF(INDEX(Stravovanie[],KoniecPoslednéhoStravovania-ZačiatokRiadkaStravovania-J15,1)<>\"\",INDEX(Stravovanie[],KoniecPoslednéhoStravovania-ZačiatokRiadkaStravovania-J15,1),\"\"),\"\")","v":"2022-12-17"},"SO",{"$f":"IFERROR((IF(INDEX(Stravovanie[],KoniecPoslednéhoStravovania-ZačiatokRiadkaStravovania-J15,1)<>\"\",INDEX(Stravovanie[],KoniecPoslednéhoStravovania-ZačiatokRiadkaStravovania-J15,7),NA())),NA())","v":10},{"$f":"IFERROR((IF(INDEX(Stravovanie[],KoniecPoslednéhoStravovania-ZačiatokRiadkaStravovania-J15,1)<>\"\",INDEX(Stravovanie[],KoniecPoslednéhoStravovania-ZačiatokRiadkaStravovania-J15,6),NA())),NA())","v":2},{"$f":"IFERROR((IF(INDEX(Stravovanie[],KoniecPoslednéhoStravovania-ZačiatokRiadkaStravovania-J15,1)<>\"\",INDEX(Stravovanie[],KoniecPoslednéhoStravovania-ZačiatokRiadkaStravovania-J15,5),NA())),NA())","v":10},{"$f":"IFERROR((IF(INDEX(Stravovanie[],KoniecPoslednéhoStravovania-ZačiatokRiadkaStravovania-J15,1)<>\"\",INDEX(Stravovanie[],KoniecPoslednéhoStravovania-ZačiatokRiadkaStravovania-J15,4),NA())),NA())","v":10},2]
[{"$nulls":3},{"$f":"IFERROR(IF(INDEX(Stravovanie[],KoniecPoslednéhoStravovania-ZačiatokRiadkaStravovania-J16,1)<>\"\",INDEX(Stravovanie[],KoniecPoslednéhoStravovania-ZačiatokRiadkaStravovania-J16,1),\"\"),\"\")","v":"2022-12-17"},"SO",{"$f":"IFERROR((IF(INDEX(Stravovanie[],KoniecPoslednéhoStravovania-ZačiatokRiadkaStravovania-J16,1)<>\"\",INDEX(Stravovanie[],KoniecPoslednéhoStravovania-ZačiatokRiadkaStravovania-J16,7),NA())),NA())","v":5.51},{"$f":"IFERROR((IF(INDEX(Stravovanie[],KoniecPoslednéhoStravovania-ZačiatokRiadkaStravovania-J16,1)<>\"\",INDEX(Stravovanie[],KoniecPoslednéhoStravovania-ZačiatokRiadkaStravovania-J16,6),NA())),NA())","v":8.81},{"$f":"IFERROR((IF(INDEX(Stravovanie[],KoniecPoslednéhoStravovania-ZačiatokRiadkaStravovania-J16,1)<>\"\",INDEX(Stravovanie[],KoniecPoslednéhoStravovania-ZačiatokRiadkaStravovania-J16,5),NA())),NA())","v":12.36},{"$f":"IFERROR((IF(INDEX(Stravovanie[],KoniecPoslednéhoStravovania-ZačiatokRiadkaStravovania-J16,1)<>\"\",INDEX(Stravovanie[],KoniecPoslednéhoStravovania-ZačiatokRiadkaStravovania-J16,4),NA())),NA())","v":135},1]
[{"$nulls":3},{"$f":"IFERROR(IF(INDEX(Stravovanie[],KoniecPoslednéhoStravovania-ZačiatokRiadkaStravovania-J17,1)<>\"\",INDEX(Stravovanie[],KoniecPoslednéhoStravovania-ZačiatokRiadkaStravovania-J17,1),\"\"),\"\")","v":"2022-12-17"},"SO",{"$f":"IFERROR((IF(INDEX(Stravovanie[],KoniecPoslednéhoStravovania-ZačiatokRiadkaStravovania-J17,1)<>\"\",INDEX(Stravovanie[],KoniecPoslednéhoStravovania-ZačiatokRiadkaStravovania-J17,7),NA())),NA())","v":15},{"$f":"IFERROR((IF(INDEX(Stravovanie[],KoniecPoslednéhoStravovania-ZačiatokRiadkaStravovania-J17,1)<>\"\",INDEX(Stravovanie[],KoniecPoslednéhoStravovania-ZačiatokRiadkaStravovania-J17,6),NA())),NA())","v":5.43},{"$f":"IFERROR((IF(INDEX(Stravovanie[],KoniecPoslednéhoStravovania-ZačiatokRiadkaStravovania-J17,1)<>\"\",INDEX(Stravovanie[],KoniecPoslednéhoStravovania-ZačiatokRiadkaStravovania-J17,5),NA())),NA())","v":7},{"$f":"IFERROR((IF(INDEX(Stravovanie[],KoniecPoslednéhoStravovania-ZačiatokRiadkaStravovania-J17,1)<>\"\",INDEX(Stravovanie[],KoniecPoslednéhoStravovania-ZačiatokRiadkaStravovania-J17,4),NA())),NA())","v":184},0]
[{"$nulls":3},{"$f":"IFERROR(IF(INDEX(Stravovanie[],KoniecPoslednéhoStravovania-ZačiatokRiadkaStravovania-J18,1)<>\"\",INDEX(Stravovanie[],KoniecPoslednéhoStravovania-ZačiatokRiadkaStravovania-J18,1)),\"\")","v":"2022-12-19"},"PO",{"$f":"IFERROR((IF(INDEX(Stravovanie[],KoniecPoslednéhoStravovania-ZačiatokRiadkaStravovania-J18,1)<>\"\",INDEX(Stravovanie[],KoniecPoslednéhoStravovania-ZačiatokRiadkaStravovania-J18,7),NA())),NA())","v":21},{"$f":"IFERROR((IF(INDEX(Stravovanie[],KoniecPoslednéhoStravovania-ZačiatokRiadkaStravovania-J18,1)<>\"\",INDEX(Stravovanie[],KoniecPoslednéhoStravovania-ZačiatokRiadkaStravovania-J18,6),NA())),NA())","v":13.5},{"$f":"IFERROR((IF(INDEX(Stravovanie[],KoniecPoslednéhoStravovania-ZačiatokRiadkaStravovania-J18,1)<>\"\",INDEX(Stravovanie[],KoniecPoslednéhoStravovania-ZačiatokRiadkaStravovania-J18,5),NA())),NA())","v":62},{"$f":"IFERROR((IF(INDEX(Stravovanie[],KoniecPoslednéhoStravovania-ZačiatokRiadkaStravovania-J18,1)<>\"\",INDEX(Stravovanie[],KoniecPoslednéhoStravovania-ZačiatokRiadkaStravovania-J18,4),NA())),NA())","v":477},-1]
[]
[null,"ÚDAJE GRAFU ANALÝZY CVIČENIA"]
[]
[null,"Začiatočný riadok",{"$f":"ROW(Cvičenie[[#Headers],[DÁTUM]])+1","v":4},"DÁTUM","DEŇ","DĹŽKA TRVANIA (MINÚTY)","SPÁLENÉ KALÓRIE","Počet"]
[null,"Posledný záznam o cvičení",{"$f":"MATCH(9.99E+307,Cvičenie[DÁTUM])+ZačiatokRiadkaCvičenia-1","v":20},{"$f":"IFERROR(IF(INDEX(Cvičenie[],KoniecPoslednéhoCvičenia-ZačiatokRiadkaCvičenia-H23,1)<>\"\",INDEX(Cvičenie[],KoniecPoslednéhoCvičenia-ZačiatokRiadkaCvičenia-H23,1)),\"\")","v":"2023-01-03"},{"$f":"UPPER(TEXT(D23,\"DDD\"))","v":"UT"},{"$f":"IFERROR((IF(INDEX(Cvičenie[],KoniecPoslednéhoCvičenia-ZačiatokRiadkaCvičenia-H23,1)<>\"\",INDEX(Cvičenie[],KoniecPoslednéhoCvičenia-ZačiatokRiadkaCvičenia-H23,2),0)),0)","v":20},{"$f":"IFERROR((IF(INDEX(Cvičenie[],KoniecPoslednéhoCvičenia-ZačiatokRiadkaCvičenia-H23,2)<>\"\",INDEX(Cvičenie[],KoniecPoslednéhoCvičenia-ZačiatokRiadkaCvičenia-H23,3),0)),0)","v":195},-1]
[{"$nulls":3},{"$f":"IFERROR(IF(INDEX(Cvičenie[],KoniecPoslednéhoCvičenia-ZačiatokRiadkaCvičenia-H24,1)<>\"\",INDEX(Cvičenie[],KoniecPoslednéhoCvičenia-ZačiatokRiadkaCvičenia-H24,1)),\"\")","v":"2023-01-02"},"PO",{"$f":"IFERROR((IF(INDEX(Cvičenie[],KoniecPoslednéhoCvičenia-ZačiatokRiadkaCvičenia-H24,1)<>\"\",INDEX(Cvičenie[],KoniecPoslednéhoCvičenia-ZačiatokRiadkaCvičenia-H24,2),0)),0)","v":25},{"$f":"IFERROR((IF(INDEX(Cvičenie[],KoniecPoslednéhoCvičenia-ZačiatokRiadkaCvičenia-H24,2)<>\"\",INDEX(Cvičenie[],KoniecPoslednéhoCvičenia-ZačiatokRiadkaCvičenia-H24,3),0)),0)","v":265},0]
[{"$nulls":3},{"$f":"IFERROR(IF(INDEX(Cvičenie[],KoniecPoslednéhoCvičenia-ZačiatokRiadkaCvičenia-H25,1)<>\"\",INDEX(Cvičenie[],KoniecPoslednéhoCvičenia-ZačiatokRiadkaCvičenia-H25,1)),\"\")","v":"2023-01-01"},"NE",{"$f":"IFERROR((IF(INDEX(Cvičenie[],KoniecPoslednéhoCvičenia-ZačiatokRiadkaCvičenia-H25,1)<>\"\",INDEX(Cvičenie[],KoniecPoslednéhoCvičenia-ZačiatokRiadkaCvičenia-H25,2),0)),0)","v":40},{"$f":"IFERROR((IF(INDEX(Cvičenie[],KoniecPoslednéhoCvičenia-ZačiatokRiadkaCvičenia-H25,2)<>\"\",INDEX(Cvičenie[],KoniecPoslednéhoCvičenia-ZačiatokRiadkaCvičenia-H25,3),0)),0)","v":290},1]
[{"$nulls":3},{"$f":"IFERROR(IF(INDEX(Cvičenie[],KoniecPoslednéhoCvičenia-ZačiatokRiadkaCvičenia-H26,1)<>\"\",INDEX(Cvičenie[],KoniecPoslednéhoCvičenia-ZačiatokRiadkaCvičenia-H26,1)),\"\")","v":"2022-12-31"},"SO",{"$f":"IFERROR((IF(INDEX(Cvičenie[],KoniecPoslednéhoCvičenia-ZačiatokRiadkaCvičenia-H26,1)<>\"\",INDEX(Cvičenie[],KoniecPoslednéhoCvičenia-ZačiatokRiadkaCvičenia-H26,2),0)),0)","v":35},{"$f":"IFERROR((IF(INDEX(Cvičenie[],KoniecPoslednéhoCvičenia-ZačiatokRiadkaCvičenia-H26,2)<>\"\",INDEX(Cvičenie[],KoniecPoslednéhoCvičenia-ZačiatokRiadkaCvičenia-H26,3),0)),0)","v":320},2]
[{"$nulls":3},{"$f":"IFERROR(IF(INDEX(Cvičenie[],KoniecPoslednéhoCvičenia-ZačiatokRiadkaCvičenia-H27,1)<>\"\",INDEX(Cvičenie[],KoniecPoslednéhoCvičenia-ZačiatokRiadkaCvičenia-H27,1)),\"\")","v":"2022-12-30"},"PI",{"$f":"IFERROR((IF(INDEX(Cvičenie[],KoniecPoslednéhoCvičenia-ZačiatokRiadkaCvičenia-H27,1)<>\"\",INDEX(Cvičenie[],KoniecPoslednéhoCvičenia-ZačiatokRiadkaCvičenia-H27,2),0)),0)","v":45},{"$f":"IFERROR((IF(INDEX(Cvičenie[],KoniecPoslednéhoCvičenia-ZačiatokRiadkaCvičenia-H27,2)<>\"\",INDEX(Cvičenie[],KoniecPoslednéhoCvičenia-ZačiatokRiadkaCvičenia-H27,3),0)),0)","v":350},3]
[{"$nulls":3},{"$f":"IFERROR(IF(INDEX(Cvičenie[],KoniecPoslednéhoCvičenia-ZačiatokRiadkaCvičenia-H28,1)<>\"\",INDEX(Cvičenie[],KoniecPoslednéhoCvičenia-ZačiatokRiadkaCvičenia-H28,1)),\"\")","v":"2022-12-29"},"ŠT",{"$f":"IFERROR((IF(INDEX(Cvičenie[],KoniecPoslednéhoCvičenia-ZačiatokRiadkaCvičenia-H28,1)<>\"\",INDEX(Cvičenie[],KoniecPoslednéhoCvičenia-ZačiatokRiadkaCvičenia-H28,2),0)),0)","v":20},{"$f":"IFERROR((IF(INDEX(Cvičenie[],KoniecPoslednéhoCvičenia-ZačiatokRiadkaCvičenia-H28,2)<>\"\",INDEX(Cvičenie[],KoniecPoslednéhoCvičenia-ZačiatokRiadkaCvičenia-H28,3),0)),0)","v":295},4]
[{"$nulls":3},{"$f":"IFERROR(IF(INDEX(Cvičenie[],KoniecPoslednéhoCvičenia-ZačiatokRiadkaCvičenia-H29,1)<>\"\",INDEX(Cvičenie[],KoniecPoslednéhoCvičenia-ZačiatokRiadkaCvičenia-H29,1)),\"\")","v":"2022-12-28"},"ST",{"$f":"IFERROR((IF(INDEX(Cvičenie[],KoniecPoslednéhoCvičenia-ZačiatokRiadkaCvičenia-H29,1)<>\"\",INDEX(Cvičenie[],KoniecPoslednéhoCvičenia-ZačiatokRiadkaCvičenia-H29,2),0)),0)","v":40},{"$f":"IFERROR((IF(INDEX(Cvičenie[],KoniecPoslednéhoCvičenia-ZačiatokRiadkaCvičenia-H29,2)<>\"\",INDEX(Cvičenie[],KoniecPoslednéhoCvičenia-ZačiatokRiadkaCvičenia-H29,3),0)),0)","v":270},5]
[{"$nulls":3},{"$f":"IFERROR(IF(INDEX(Cvičenie[],KoniecPoslednéhoCvičenia-ZačiatokRiadkaCvičenia-H30,1)<>\"\",INDEX(Cvičenie[],KoniecPoslednéhoCvičenia-ZačiatokRiadkaCvičenia-H30,1)),\"\")","v":"2022-12-27"},"UT",{"$f":"IFERROR((IF(INDEX(Cvičenie[],KoniecPoslednéhoCvičenia-ZačiatokRiadkaCvičenia-H30,1)<>\"\",INDEX(Cvičenie[],KoniecPoslednéhoCvičenia-ZačiatokRiadkaCvičenia-H30,2),0)),0)","v":45},{"$f":"IFERROR((IF(INDEX(Cvičenie[],KoniecPoslednéhoCvičenia-ZačiatokRiadkaCvičenia-H30,2)<>\"\",INDEX(Cvičenie[],KoniecPoslednéhoCvičenia-ZačiatokRiadkaCvičenia-H30,3),0)),0)","v":325},6]
[{"$nulls":3},{"$f":"IFERROR(IF(INDEX(Cvičenie[],KoniecPoslednéhoCvičenia-ZačiatokRiadkaCvičenia-H31,1)<>\"\",INDEX(Cvičenie[],KoniecPoslednéhoCvičenia-ZačiatokRiadkaCvičenia-H31,1)),\"\")","v":"2022-12-26"},"PO",{"$f":"IFERROR((IF(INDEX(Cvičenie[],KoniecPoslednéhoCvičenia-ZačiatokRiadkaCvičenia-H31,1)<>\"\",INDEX(Cvičenie[],KoniecPoslednéhoCvičenia-ZačiatokRiadkaCvičenia-H31,2),0)),0)","v":40},{"$f":"IFERROR((IF(INDEX(Cvičenie[],KoniecPoslednéhoCvičenia-ZačiatokRiadkaCvičenia-H31,2)<>\"\",INDEX(Cvičenie[],KoniecPoslednéhoCvičenia-ZačiatokRiadkaCvičenia-H31,3),0)),0)","v":175},7]
[{"$nulls":3},{"$f":"IFERROR(IF(INDEX(Cvičenie[],KoniecPoslednéhoCvičenia-ZačiatokRiadkaCvičenia-H32,1)<>\"\",INDEX(Cvičenie[],KoniecPoslednéhoCvičenia-ZačiatokRiadkaCvičenia-H32,1)),\"\")","v":"2022-12-25"},"NE",{"$f":"IFERROR((IF(INDEX(Cvičenie[],KoniecPoslednéhoCvičenia-ZačiatokRiadkaCvičenia-H32,1)<>\"\",INDEX(Cvičenie[],KoniecPoslednéhoCvičenia-ZačiatokRiadkaCvičenia-H32,2),0)),0)","v":30},{"$f":"IFERROR((IF(INDEX(Cvičenie[],KoniecPoslednéhoCvičenia-ZačiatokRiadkaCvičenia-H32,2)<>\"\",INDEX(Cvičenie[],KoniecPoslednéhoCvičenia-ZačiatokRiadkaCvičenia-H32,3),0)),0)","v":335},8]
[{"$nulls":3},{"$f":"IFERROR(IF(INDEX(Cvičenie[],KoniecPoslednéhoCvičenia-ZačiatokRiadkaCvičenia-H33,1)<>\"\",INDEX(Cvičenie[],KoniecPoslednéhoCvičenia-ZačiatokRiadkaCvičenia-H33,1)),\"\")","v":"2022-12-24"},"SO",{"$f":"IFERROR((IF(INDEX(Cvičenie[],KoniecPoslednéhoCvičenia-ZačiatokRiadkaCvičenia-H33,1)<>\"\",INDEX(Cvičenie[],KoniecPoslednéhoCvičenia-ZačiatokRiadkaCvičenia-H33,2),0)),0)","v":40},{"$f":"IFERROR((IF(INDEX(Cvičenie[],KoniecPoslednéhoCvičenia-ZačiatokRiadkaCvičenia-H33,2)<>\"\",INDEX(Cvičenie[],KoniecPoslednéhoCvičenia-ZačiatokRiadkaCvičenia-H33,3),0)),0)","v":205},9]
[{"$nulls":3},{"$f":"IFERROR(IF(INDEX(Cvičenie[],KoniecPoslednéhoCvičenia-ZačiatokRiadkaCvičenia-H34,1)<>\"\",INDEX(Cvičenie[],KoniecPoslednéhoCvičenia-ZačiatokRiadkaCvičenia-H34,1)),\"\")","v":"2022-12-23"},"PI",{"$f":"IFERROR((IF(INDEX(Cvičenie[],KoniecPoslednéhoCvičenia-ZačiatokRiadkaCvičenia-H34,1)<>\"\",INDEX(Cvičenie[],KoniecPoslednéhoCvičenia-ZačiatokRiadkaCvičenia-H34,2),0)),0)","v":20},{"$f":"IFERROR((IF(INDEX(Cvičenie[],KoniecPoslednéhoCvičenia-ZačiatokRiadkaCvičenia-H34,2)<>\"\",INDEX(Cvičenie[],KoniecPoslednéhoCvičenia-ZačiatokRiadkaCvičenia-H34,3),0)),0)","v":285},10]
[{"$nulls":3},{"$f":"IFERROR(IF(INDEX(Cvičenie[],KoniecPoslednéhoCvičenia-ZačiatokRiadkaCvičenia-H35,1)<>\"\",INDEX(Cvičenie[],KoniecPoslednéhoCvičenia-ZačiatokRiadkaCvičenia-H35,1)),\"\")","v":"2022-12-22"},"ŠT",{"$f":"IFERROR((IF(INDEX(Cvičenie[],KoniecPoslednéhoCvičenia-ZačiatokRiadkaCvičenia-H35,1)<>\"\",INDEX(Cvičenie[],KoniecPoslednéhoCvičenia-ZačiatokRiadkaCvičenia-H35,2),0)),0)","v":25},{"$f":"IFERROR((IF(INDEX(Cvičenie[],KoniecPoslednéhoCvičenia-ZačiatokRiadkaCvičenia-H35,2)<>\"\",INDEX(Cvičenie[],KoniecPoslednéhoCvičenia-ZačiatokRiadkaCvičenia-H35,3),0)),0)","v":125},11]
[{"$nulls":3},{"$f":"IFERROR(IF(INDEX(Cvičenie[],KoniecPoslednéhoCvičenia-ZačiatokRiadkaCvičenia-H36,1)<>\"\",INDEX(Cvičenie[],KoniecPoslednéhoCvičenia-ZačiatokRiadkaCvičenia-H36,1)),\"\")","v":"2022-12-21"},"ST",{"$f":"IFERROR((IF(INDEX(Cvičenie[],KoniecPoslednéhoCvičenia-ZačiatokRiadkaCvičenia-H36,1)<>\"\",INDEX(Cvičenie[],KoniecPoslednéhoCvičenia-ZačiatokRiadkaCvičenia-H36,2),0)),0)","v":30},{"$f":"IFERROR((IF(INDEX(Cvičenie[],KoniecPoslednéhoCvičenia-ZačiatokRiadkaCvičenia-H36,2)<>\"\",INDEX(Cvičenie[],KoniecPoslednéhoCvičenia-ZačiatokRiadkaCvičenia-H36,3),0)),0)","v":150},12]